[Event "GrandPrix_30.05"]
[Site "Chess.com"]
[Date "2020.05.30"]
[Round "8"]
[White "TheJoker64"]
[Black "Micki-taryan"]
[Result "1-0"]
[WhiteElo "2357"]
[BlackElo "2480"]
[TimeControl "600+2"]
[EndTime "11:53:36 PDT"]
[Termination "TheJoker64 won by resignation"]

1. e4 {[%clk 0:10:01.9]} 1... e6 {[%clk 0:09:55.9]} 2. d4 {[%clk 0:09:59.3]}
2... d5 {[%clk 0:09:57.3]} 3. Bd3 {[%clk 0:10:00.1]} 3... dxe4 {[%clk
0:09:58.3]} 4. Bxe4 {[%clk 0:10:01.1]} 4... Nf6 {[%clk 0:10:00.2]} 5. Bf3 {[%clk
0:10:02.4]} 5... c5 {[%clk 0:10:01.8]} 6. Ne2 {[%clk 0:10:03.7]} 6... Nc6 {[%clk
0:10:02.8]} 7. Be3 {[%clk 0:10:04.6]} 7... cxd4 {[%clk 0:10:04.3]} 8. Nxd4
{[%clk 0:10:05.4]} 8... Ne5 {[%clk 0:10:05.6]} 9. Nc3 {[%clk 0:10:06.3]} 9... a6
{[%clk 0:10:06.9]} 10. Qe2 {[%clk 0:10:05.9]} 10... Nxf3+ {[%clk 0:10:08.4]} 11.
Qxf3 {[%clk 0:10:03.6]} 11... e5 {[%clk 0:10:08.9]} 12. O-O-O {[%clk 0:08:33.2]}
12... Bg4 {[%clk 0:10:00.1]} 13. Qxb7 {[%clk 0:08:31]} 13... Bxd1 {[%clk
0:09:55.3]} 14. Rxd1 {[%clk 0:08:30]} 14... exd4 {[%clk 0:08:06.5]} 15. Bxd4
{[%clk 0:08:20.9]} 15... Rb8 {[%clk 0:07:03.1]} 16. Re1+ {[%clk 0:07:24.9]}
16... Be7 {[%clk 0:06:51.6]} 17. Rxe7+ {[%clk 0:07:24.7]} 17... Kf8 {[%clk
0:06:11.6]} 18. Rxf7+ {[%clk 0:07:14.1]} 18... Ke8 {[%clk 0:06:12.5]} 19. Qc7
{[%clk 0:05:40.8]} 19... Rg8 {[%clk 0:05:46.3]} 20. Rxg7 {[%clk 0:04:58.6]}
20... Rxg7 {[%clk 0:05:40.4]} 21. Qxg7 {[%clk 0:04:58]} 21... Qxd4 {[%clk
0:05:04.4]} 22. Qh8+ {[%clk 0:04:57.8]} 22... Kf7 {[%clk 0:05:00.2]} 23. Qxb8
{[%clk 0:04:57.5]} 23... Qxf2 {[%clk 0:05:02.1]} 24. Qc7+ {[%clk 0:04:53.9]}
24... Kf8 {[%clk 0:04:56.5]} 25. Qd6+ {[%clk 0:04:49.5]} 25... Kf7 {[%clk
0:04:57.8]} 26. Qg3 {[%clk 0:04:23]} 26... Qg1+ {[%clk 0:04:47.9]} 27. Nd1
{[%clk 0:04:21.1]} 27... a5 {[%clk 0:04:32.8]} 28. h3 {[%clk 0:04:15.4]} 28...
a4 {[%clk 0:04:32]} 29. Qf3 {[%clk 0:04:12.5]} 29... Qd4 {[%clk 0:04:30.9]} 30.
Ne3 {[%clk 0:03:57.3]} 30... a3 {[%clk 0:04:31.7]} 31. bxa3 {[%clk 0:03:44.4]}
31... h5 {[%clk 0:04:05.4]} 32. g4 {[%clk 0:03:38.5]} 32... Kg8 {[%clk
0:04:01.5]} 33. Qa8+ {[%clk 0:03:09.8]} 33... Kh7 {[%clk 0:04:01.6]} 34. Qb7+
{[%clk 0:03:09]} 34... Kg6 {[%clk 0:04:01.7]} 35. Qg7+ {[%clk 0:02:56.3]} 35...
Kxg7 {[%clk 0:04:01.7]} 36. Nf5+ {[%clk 0:02:58.2]} 36... Kf7 {[%clk 0:04:03.3]}
37. Nxd4 {[%clk 0:02:59.1]} 37... hxg4 {[%clk 0:04:05.2]} 38. hxg4 {[%clk
0:03:00.2]} 38... Nxg4 {[%clk 0:04:07.1]} 39. Kb2 {[%clk 0:03:01.2]} 39... Ke7
{[%clk 0:04:08.6]} 40. Kb3 {[%clk 0:03:02.7]} 40... Kd6 {[%clk 0:04:10.5]} 41.
c4 {[%clk 0:03:01.9]} 41... Ne3 {[%clk 0:04:09.8]} 42. a4 {[%clk 0:02:58]} 42...
Kc5 {[%clk 0:04:10.8]} 43. Ne6+ {[%clk 0:02:58.6]} 43... Kd6 {[%clk 0:04:12]}
44. Nf4 {[%clk 0:02:59.8]} 44... Kc5 {[%clk 0:04:13.4]} 45. Nd3+ {[%clk
0:02:59.1]} 45... Kd4 {[%clk 0:04:14.2]} 46. Nb2 {[%clk 0:03:00.4]} 46... Kc5
{[%clk 0:04:10.8]} 47. a5 {[%clk 0:03:00.7]} 47... Nf5 {[%clk 0:04:11.4]} 48.
Na4+ {[%clk 0:03:01.5]} 48... Kd4 {[%clk 0:04:11.2]} 49. a6 {[%clk 0:02:58.6]}
1-0

[Event "GrandPrix_30.05"]
[Site "Chess.com"]
[Date "2020.05.30"]
[Round "8"]
[White "Murad_Ibrahimli"]
[Black "EvgenyPigusov"]
[Result "1-0"]
[WhiteElo "2562"]
[BlackElo "2327"]
[TimeControl "600+2"]
[EndTime "11:53:45 PDT"]
[Termination "Murad_Ibrahimli won by resignation"]

1. d4 {[%clk 0:10:01.9]} 1... d5 {[%clk 0:09:59.6]} 2. c4 {[%clk 0:10:01.9]}
2... e6 {[%clk 0:10:00.8]} 3. Nf3 {[%clk 0:10:01.3]} 3... Nf6 {[%clk 0:10:00.6]}
4. g3 {[%clk 0:10:02.5]} 4... Be7 {[%clk 0:10:01.6]} 5. Bg2 {[%clk 0:10:03.4]}
5... O-O {[%clk 0:10:02.7]} 6. O-O {[%clk 0:10:04.8]} 6... b6 {[%clk 0:10:00.4]}
7. b3 {[%clk 0:10:02]} 7... Bb7 {[%clk 0:10:00.5]} 8. Bb2 {[%clk 0:09:50.1]}
8... Na6 {[%clk 0:09:43.1]} 9. Nc3 {[%clk 0:09:50.9]} 9... c5 {[%clk 0:09:38.7]}
10. cxd5 {[%clk 0:09:49.4]} 10... Nxd5 {[%clk 0:09:38]} 11. Nxd5 {[%clk
0:09:29.2]} 11... Bxd5 {[%clk 0:09:35.6]} 12. Rc1 {[%clk 0:09:18.8]} 12... Rc8
{[%clk 0:09:09.7]} 13. Re1 {[%clk 0:09:16.7]} 13... Be4 {[%clk 0:08:46.2]} 14.
Ne5 {[%clk 0:08:25]} 14... Bxg2 {[%clk 0:08:41.8]} 15. Kxg2 {[%clk 0:08:26.3]}
15... Nb4 {[%clk 0:05:23.4]} 16. a3 {[%clk 0:08:10.9]} 16... Nc6 {[%clk
0:05:20.3]} 17. Nxc6 {[%clk 0:08:09.2]} 17... Rxc6 {[%clk 0:05:19.6]} 18. dxc5
{[%clk 0:08:08.2]} 18... Rxc5 {[%clk 0:04:06.9]} 19. b4 {[%clk 0:07:16]} 19...
Qa8+ {[%clk 0:03:12.5]} 20. e4 {[%clk 0:07:12]} 20... Rxc1 {[%clk 0:03:11.3]}
21. Qxc1 {[%clk 0:07:11.1]} 21... Rc8 {[%clk 0:02:50.2]} 22. Qd1 {[%clk
0:07:10.2]} 22... Bf8 {[%clk 0:02:39.3]} 23. h4 {[%clk 0:07:06.8]} 23... Rc4
{[%clk 0:02:36.8]} 24. Qd3 {[%clk 0:07:00.6]} 24... Qc6 {[%clk 0:02:34.2]} 25.
Re2 {[%clk 0:07:01.7]} 25... a5 {[%clk 0:02:29.3]} 26. bxa5 {[%clk 0:07:00.5]}
26... bxa5 {[%clk 0:02:30.1]} 27. h5 {[%clk 0:06:55.4]} 27... h6 {[%clk
0:02:29.7]} 28. Be5 {[%clk 0:06:36.4]} 28... a4 {[%clk 0:02:18.2]} 29. f3 {[%clk
0:06:27.7]} 29... Rc5 {[%clk 0:02:13.8]} 30. Bd4 {[%clk 0:06:19.4]} 30... Rxh5
{[%clk 0:02:09.7]} 31. Rc2 {[%clk 0:06:18.9]} 31... Qb5 {[%clk 0:02:04.4]} 32.
Qxb5 {[%clk 0:06:02.4]} 32... Rxb5 {[%clk 0:02:04.1]} 33. Rc8 {[%clk 0:06:04]}
33... f6 {[%clk 0:01:52.2]} 34. Ra8 {[%clk 0:06:04.5]} 34... Kf7 {[%clk
0:01:45.9]} 35. Rxa4 {[%clk 0:06:05]} 35... Rb3 {[%clk 0:01:45.3]} 36. Ra7+
{[%clk 0:06:05.2]} 36... Kg6 {[%clk 0:01:46]} 37. a4 {[%clk 0:06:06.4]} 37... e5
{[%clk 0:01:44.5]} 38. Bg1 {[%clk 0:06:06.2]} 38... Rb2+ {[%clk 0:01:41.9]} 39.
Kh3 {[%clk 0:06:06.7]} 39... Rb3 {[%clk 0:01:36.1]} 40. a5 {[%clk 0:05:56.2]}
40... Rxf3 {[%clk 0:01:35.4]} 41. Ra8 {[%clk 0:05:54.4]} 41... Rf1 {[%clk
0:01:27.6]} 42. Kg2 {[%clk 0:05:39.2]} 42... Ra1 {[%clk 0:01:26.4]} 43. a6
{[%clk 0:05:40.4]} 43... Bb4 {[%clk 0:01:21.3]} 44. a7 {[%clk 0:05:37.4]} 44...
Ra2+ {[%clk 0:01:11.5]} 45. Kh3 {[%clk 0:05:36.6]} 45... Be1 {[%clk 0:01:09.6]}
46. Rc8 {[%clk 0:05:30.3]} 46... Ra3 {[%clk 0:01:10.3]} 47. a8=Q {[%clk
0:05:29.6]} 1-0

[Event "GrandPrix_30.05"]
[Site "Chess.com"]
[Date "2020.05.30"]
[Round "8"]
[White "LuckyLuka04"]
[Black "ly4o"]
[Result "1-0"]
[WhiteElo "2159"]
[BlackElo "2015"]
[TimeControl "600+2"]
[EndTime "11:53:53 PDT"]
[Termination "LuckyLuka04 won by resignation"]

1. d4 {[%clk 0:10:01.9]} 1... Nf6 {[%clk 0:09:55.1]} 2. Nf3 {[%clk 0:10:02.9]}
2... e6 {[%clk 0:09:55.1]} 3. Bf4 {[%clk 0:10:03.4]} 3... d5 {[%clk 0:09:54.5]}
4. e3 {[%clk 0:10:04.6]} 4... c5 {[%clk 0:09:49.8]} 5. c3 {[%clk 0:10:05.1]}
5... Nc6 {[%clk 0:09:48.5]} 6. Nbd2 {[%clk 0:10:05.9]} 6... cxd4 {[%clk
0:09:49.2]} 7. exd4 {[%clk 0:10:06.4]} 7... Nh5 {[%clk 0:09:50]} 8. Be3 {[%clk
0:10:07.5]} 8... Bd6 {[%clk 0:09:48.4]} 9. Ne5 {[%clk 0:10:08.4]} 9... g6 {[%clk
0:09:44.6]} 10. g4 {[%clk 0:10:07.4]} 10... Ng7 {[%clk 0:09:37.7]} 11. h4 {[%clk
0:10:08]} 11... f6 {[%clk 0:09:36.9]} 12. Bh6 {[%clk 0:09:44.7]} 12... O-O
{[%clk 0:09:28.4]} 13. Nd3 {[%clk 0:09:43.5]} 13... e5 {[%clk 0:09:27.8]} 14.
dxe5 {[%clk 0:09:41.9]} 14... fxe5 {[%clk 0:09:29.7]} 15. Qb3 {[%clk 0:09:29.4]}
15... Be6 {[%clk 0:09:19.3]} 16. O-O-O {[%clk 0:09:13.5]} 16... Na5 {[%clk
0:09:18.7]} 17. Qa4 {[%clk 0:09:10]} 17... b5 {[%clk 0:09:15.8]} 18. Qc2 {[%clk
0:09:04.9]} 18... e4 {[%clk 0:09:15]} 19. Ne1 {[%clk 0:09:01.9]} 19... Rxf2
{[%clk 0:09:15.2]} 20. Be3 {[%clk 0:08:56]} 20... Rf8 {[%clk 0:09:14.1]} 21. Be2
{[%clk 0:08:41]} 21... Nc4 {[%clk 0:09:09.5]} 22. Nxc4 {[%clk 0:08:35.4]} 22...
bxc4 {[%clk 0:09:11.4]} 23. h5 {[%clk 0:08:33.4]} 23... g5 {[%clk 0:09:07.3]}
24. h6 {[%clk 0:08:28.5]} 24... Ne8 {[%clk 0:09:08.3]} 25. Qd2 {[%clk
0:08:29.2]} 25... Bf4 {[%clk 0:09:07.6]} 26. Nc2 {[%clk 0:08:30.1]} 26... Qa5
{[%clk 0:08:54.6]} 27. Rh5 {[%clk 0:07:07.9]} 27... Qxa2 {[%clk 0:08:45.3]} 28.
Bxf4 {[%clk 0:06:55.6]} 28... gxf4 {[%clk 0:08:46]} 29. Rg5+ {[%clk 0:06:51.9]}
29... Kf7 {[%clk 0:08:41.7]} 30. Qd4 {[%clk 0:06:48.4]} 30... Rb8 {[%clk
0:08:25.7]} 31. Nb4 {[%clk 0:06:15.2]} 31... Qa1+ {[%clk 0:08:22.3]} 32. Kc2
{[%clk 0:06:12.9]} 32... Qa4+ {[%clk 0:08:08.3]} 33. Kb1 {[%clk 0:06:11.9]}
33... Nf6 {[%clk 0:06:57.9]} 34. Rg7+ {[%clk 0:06:02.9]} 34... Ke8 {[%clk
0:06:59.3]} 35. Qe5 {[%clk 0:04:58.3]} 35... Rb6 {[%clk 0:06:58.4]} 36. g5
{[%clk 0:04:17.8]} 36... Nd7 {[%clk 0:06:34.6]} 37. Qc7 {[%clk 0:03:49]} 37...
Rf7 {[%clk 0:06:25.8]} 38. Bh5 {[%clk 0:03:24.1]} 38... f3 {[%clk 0:06:25.1]}
39. Rxd5 {[%clk 0:02:27.6]} 39... Bxd5 {[%clk 0:06:06.2]} 40. Rg8+ {[%clk
0:00:50.2]} 40... Ke7 {[%clk 0:06:02.4]} 41. Nxd5+ {[%clk 0:00:36.8]} 41... Ke6
{[%clk 0:06:03]} 42. Re8+ {[%clk 0:00:12.9]} 1-0

[Event "GrandPrix_30.05"]
[Site "Chess.com"]
[Date "2020.05.30"]
[Round "8"]
[White "sahidi"]
[Black "Kildepiotr"]
[Result "0-1"]
[WhiteElo "2134"]
[BlackElo "2086"]
[TimeControl "600+2"]
[EndTime "11:54:02 PDT"]
[Termination "Kildepiotr won by resignation"]

1. d4 {[%clk 0:10:01.9]} 1... c5 {[%clk 0:10:00.1]} 2. d5 {[%clk 0:09:56.6]}
2... e5 {[%clk 0:10:00.8]} 3. e4 {[%clk 0:09:43.6]} 3... d6 {[%clk 0:09:57.7]}
4. Bb5+ {[%clk 0:09:41.9]} 4... Nd7 {[%clk 0:09:57.9]} 5. Nc3 {[%clk 0:09:36.9]}
5... Be7 {[%clk 0:09:55.5]} 6. Nge2 {[%clk 0:09:35.3]} 6... Bg5 {[%clk
0:09:54.1]} 7. O-O {[%clk 0:09:33.4]} 7... Bxc1 {[%clk 0:09:54.7]} 8. Qxc1
{[%clk 0:09:33.8]} 8... a6 {[%clk 0:09:55.4]} 9. Bxd7+ {[%clk 0:09:34]} 9...
Bxd7 {[%clk 0:09:57.3]} 10. a4 {[%clk 0:09:34.9]} 10... Nf6 {[%clk 0:09:52]} 11.
f4 {[%clk 0:09:29.3]} 11... exf4 {[%clk 0:09:50.7]} 12. Qxf4 {[%clk 0:09:29.2]}
12... Qe7 {[%clk 0:09:51]} 13. Ng3 {[%clk 0:09:28]} 13... O-O {[%clk 0:09:51.2]}
14. Rae1 {[%clk 0:09:15.3]} 14... Rfe8 {[%clk 0:09:51.3]} 15. a5 {[%clk
0:09:05.9]} 15... Qe5 {[%clk 0:09:46.1]} 16. h3 {[%clk 0:08:13.5]} 16... Qxf4
{[%clk 0:09:42.6]} 17. Rxf4 {[%clk 0:08:13.7]} 17... Rab8 {[%clk 0:09:40.7]} 18.
b3 {[%clk 0:08:10]} 18... b5 {[%clk 0:09:36.1]} 19. axb6 {[%clk 0:08:11]} 19...
Rxb6 {[%clk 0:09:37.1]} 20. Nf1 {[%clk 0:07:53.3]} 20... Bb5 {[%clk 0:09:11.7]}
21. Ne3 {[%clk 0:07:38.4]} 21... Nd7 {[%clk 0:09:05.1]} 22. Ra1 {[%clk
0:07:20.7]} 22... Ne5 {[%clk 0:08:55.6]} 23. Nb1 {[%clk 0:06:48]} 23... Ng6
{[%clk 0:08:33.9]} 24. Rf3 {[%clk 0:06:31.6]} 24... Rxe4 {[%clk 0:08:28.9]} 25.
c4 {[%clk 0:06:30.1]} 25... Bd7 {[%clk 0:08:23.4]} 26. Nd2 {[%clk 0:06:27.3]}
26... Re7 {[%clk 0:08:19.3]} 27. Nd1 {[%clk 0:06:16.9]} 27... Re2 {[%clk
0:08:01]} 28. Rf2 {[%clk 0:06:14.4]} 28... Re1+ {[%clk 0:07:57.6]} 29. Rf1
{[%clk 0:06:11.5]} 29... Rxf1+ {[%clk 0:07:58.1]} 30. Kxf1 {[%clk 0:06:12]}
30... Ne5 {[%clk 0:07:53.3]} 31. Nc3 {[%clk 0:06:11.3]} 31... f5 {[%clk
0:07:50]} 32. Ke2 {[%clk 0:06:03.5]} 32... Kf7 {[%clk 0:07:46.1]} 33. g3 {[%clk
0:05:45.9]} 33... g5 {[%clk 0:07:41.6]} 34. h4 {[%clk 0:05:45.7]} 34... h6
{[%clk 0:07:41.9]} 35. hxg5 {[%clk 0:05:46.4]} 35... hxg5 {[%clk 0:07:42.9]} 36.
Rh1 {[%clk 0:05:47.3]} 36... Rb8 {[%clk 0:07:31.2]} 37. Rh6 {[%clk 0:05:33.5]}
37... Ke7 {[%clk 0:07:29]} 38. Nd1 {[%clk 0:05:14.9]} 38... Rf8 {[%clk
0:06:41.2]} 39. Nf2 {[%clk 0:05:11.7]} 39... f4 {[%clk 0:06:27]} 40. gxf4 {[%clk
0:05:11]} 40... gxf4 {[%clk 0:06:27.3]} 41. Nfe4 {[%clk 0:05:04.1]} 41... f3+
{[%clk 0:06:16.5]} 42. Kf1 {[%clk 0:04:54.5]} 42... Ng4 {[%clk 0:05:47.5]} 43.
Rh7+ {[%clk 0:04:46.3]} 43... Kd8 {[%clk 0:05:48.1]} 44. Nxd6 {[%clk 0:04:16.1]}
44... f2 {[%clk 0:05:33]} 45. Nf7+ {[%clk 0:03:55.6]} 45... Kc7 {[%clk
0:05:33.3]} 46. Ng5 {[%clk 0:03:37.8]} 46... Kc8 {[%clk 0:05:18.8]} 47. Rf7
{[%clk 0:03:24.2]} 47... Rh8 {[%clk 0:04:25.3]} 48. Nge4 {[%clk 0:03:02.9]}
48... Rh1+ {[%clk 0:04:18.6]} 49. Ke2 {[%clk 0:03:03.9]} 49... Re1+ {[%clk
0:04:18.8]} 50. Kd3 {[%clk 0:03:03.9]} 50... Ne5+ {[%clk 0:04:19.1]} 51. Kc3
{[%clk 0:02:57.2]} 51... Re3+ {[%clk 0:04:05.6]} 52. Kb2 {[%clk 0:02:50.8]}
52... Nxf7 {[%clk 0:04:04.7]} 53. Nxf2 {[%clk 0:02:51.7]} 53... Re2 {[%clk
0:03:58.3]} 54. Ne4 {[%clk 0:02:52.6]} 54... Bf5 {[%clk 0:03:57.1]} 0-1

[Event "GrandPrix_30.05"]
[Site "Chess.com"]
[Date "2020.05.30"]
[Round "8"]
[White "GM_LOADING"]
[Black "Velis23"]
[Result "1-0"]
[WhiteElo "2317"]
[BlackElo "2170"]
[TimeControl "600+2"]
[EndTime "11:54:18 PDT"]
[Termination "GM_LOADING won by resignation"]

1. e4 {[%clk 0:10:01.9]} 1... c6 {[%clk 0:09:59.9]} 2. d4 {[%clk 0:10:02.6]}
2... d5 {[%clk 0:10:00.9]} 3. e5 {[%clk 0:10:01.5]} 3... Na6 {[%clk 0:09:55.4]}
4. Nf3 {[%clk 0:09:45.7]} 4... g6 {[%clk 0:09:54.4]} 5. c4 {[%clk 0:09:35.7]}
5... Bf5 {[%clk 0:09:47.1]} 6. a3 {[%clk 0:08:48.6]} 6... Bxb1 {[%clk 0:09:27]}
7. Rxb1 {[%clk 0:08:48.4]} 7... Nc7 {[%clk 0:09:26.8]} 8. h4 {[%clk 0:08:26.8]}
8... h5 {[%clk 0:09:24.7]} 9. cxd5 {[%clk 0:08:27.4]} 9... Nxd5 {[%clk
0:09:23.3]} 10. e6 {[%clk 0:08:27]} 10... Nh6 {[%clk 0:08:36.9]} 11. Ne5 {[%clk
0:06:50.2]} 11... fxe6 {[%clk 0:07:35.8]} 12. Nxg6 {[%clk 0:06:30]} 12... Rh7
{[%clk 0:07:33.6]} 13. Nxf8 {[%clk 0:05:09.9]} 13... Kxf8 {[%clk 0:07:16.5]} 14.
Qxh5 {[%clk 0:05:09.5]} 14... Kg7 {[%clk 0:06:27]} 15. Qe5+ {[%clk 0:03:29.3]}
15... Nf6 {[%clk 0:05:44.8]} 16. Bd3 {[%clk 0:03:26.5]} 16... Rh8 {[%clk
0:05:03.1]} 17. Bxh6+ {[%clk 0:01:58.9]} 17... Rxh6 {[%clk 0:04:33.1]} 18. Qg5+
{[%clk 0:01:59.2]} 18... Kf7 {[%clk 0:04:34.1]} 19. Qxh6 {[%clk 0:02:00.2]}
19... Qxd4 {[%clk 0:04:35.1]} 20. Bg6+ {[%clk 0:01:53.9]} 20... Kg8 {[%clk
0:04:34.6]} 21. O-O {[%clk 0:01:50.8]} 21... Qe5 {[%clk 0:03:53.2]} 22. Qg5
{[%clk 0:01:42.5]} 22... Qc7 {[%clk 0:03:48.4]} 23. Rfe1 {[%clk 0:01:32.6]}
23... Rd8 {[%clk 0:03:37.2]} 24. Rxe6 {[%clk 0:01:23.4]} 24... Rd5 {[%clk
0:03:37.6]} 25. Bf5+ {[%clk 0:01:19.8]} 25... Kf8 {[%clk 0:03:37.6]} 26. Rbe1
{[%clk 0:01:17]} 26... Qa5 {[%clk 0:03:16.9]} 27. Qh6+ {[%clk 0:01:15.1]} 1-0

[Event "GrandPrix_30.05"]
[Site "Chess.com"]
[Date "2020.05.30"]
[Round "8"]
[White "Supernotar"]
[Black "Arm-Akiba"]
[Result "0-1"]
[WhiteElo "2248"]
[BlackElo "2690"]
[TimeControl "600+2"]
[EndTime "11:54:20 PDT"]
[Termination "Arm-Akiba won by checkmate"]

1. d4 {[%clk 0:10:01.9]} 1... Nf6 {[%clk 0:10:00.5]} 2. c4 {[%clk 0:10:02.6]}
2... e6 {[%clk 0:10:01.9]} 3. Nf3 {[%clk 0:10:03.3]} 3... d5 {[%clk 0:10:02.6]}
4. e3 {[%clk 0:10:04.3]} 4... a6 {[%clk 0:09:54.1]} 5. Nbd2 {[%clk 0:10:03.5]}
5... b6 {[%clk 0:09:45.9]} 6. Bd3 {[%clk 0:10:01.4]} 6... Bb7 {[%clk 0:09:46.5]}
7. b3 {[%clk 0:10:02.5]} 7... Bd6 {[%clk 0:09:46.2]} 8. Bb2 {[%clk 0:10:01.3]}
8... O-O {[%clk 0:09:46.9]} 9. O-O {[%clk 0:10:02.5]} 9... Nbd7 {[%clk
0:09:44.3]} 10. Qe2 {[%clk 0:10:01.2]} 10... Ne4 {[%clk 0:09:44.1]} 11. Rad1
{[%clk 0:09:57.9]} 11... f5 {[%clk 0:09:43.5]} 12. Ne5 {[%clk 0:09:52.7]} 12...
Qe7 {[%clk 0:09:41.6]} 13. Nxd7 {[%clk 0:09:15.8]} 13... Qxd7 {[%clk 0:09:43.5]}
14. f3 {[%clk 0:09:15.5]} 14... Nxd2 {[%clk 0:09:33.3]} 15. Rxd2 {[%clk
0:09:12.9]} 15... Qe7 {[%clk 0:09:34.6]} 16. Rdd1 {[%clk 0:08:18]} 16... Qh4
{[%clk 0:09:17.5]} 17. g3 {[%clk 0:07:53.7]} 17... Qe7 {[%clk 0:09:04.1]} 18. e4
{[%clk 0:07:31.6]} 18... dxc4 {[%clk 0:08:31.7]} 19. bxc4 {[%clk 0:06:57.8]}
19... Ba3 {[%clk 0:07:57.1]} 20. Ba1 {[%clk 0:06:42.8]} 20... f4 {[%clk
0:07:54.8]} 21. e5 {[%clk 0:05:44.5]} 21... Rad8 {[%clk 0:07:50.4]} 22. Be4
{[%clk 0:05:41.9]} 22... Bxe4 {[%clk 0:07:23.7]} 23. Qxe4 {[%clk 0:05:39.6]}
23... b5 {[%clk 0:07:24.7]} 24. c5 {[%clk 0:04:16.6]} 24... Qd7 {[%clk
0:07:25.7]} 25. Rb1 {[%clk 0:03:41.5]} 25... Qd5 {[%clk 0:07:24.4]} 26. Kg2
{[%clk 0:03:10.9]} 26... Qxa2+ {[%clk 0:07:02.6]} 27. Rf2 {[%clk 0:03:10.9]}
27... Qd5 {[%clk 0:07:02.7]} 28. gxf4 {[%clk 0:03:00.7]} 28... b4 {[%clk
0:06:57.4]} 29. Qe3 {[%clk 0:02:45.7]} 29... a5 {[%clk 0:06:48]} 30. Kh1 {[%clk
0:02:43.7]} 30... Rf5 {[%clk 0:06:32.6]} 31. Rg2 {[%clk 0:02:39.4]} 31... Rdf8
{[%clk 0:06:19.3]} 32. Rbg1 {[%clk 0:02:39.7]} 32... g6 {[%clk 0:06:11.1]} 33.
Rg4 {[%clk 0:02:40.5]} 33... Kg7 {[%clk 0:05:55.1]} 34. h4 {[%clk 0:02:35.6]}
34... a4 {[%clk 0:05:36.8]} 35. R1g3 {[%clk 0:02:24]} 35... b3 {[%clk 0:05:24]}
36. Bc3 {[%clk 0:02:19.1]} 36... b2 {[%clk 0:04:56.3]} 37. Rg1 {[%clk
0:02:03.3]} 37... Qb3 {[%clk 0:04:48.9]} 38. Qd3 {[%clk 0:01:30.9]} 38... Bb4
{[%clk 0:04:32.4]} 39. h5 {[%clk 0:01:26.2]} 39... Rxh5+ {[%clk 0:04:28.6]} 40.
Kg2 {[%clk 0:01:26.7]} 40... Qxc3 {[%clk 0:04:25]} 41. Qb5 {[%clk 0:01:21]}
41... Qc2+ {[%clk 0:04:17.5]} 42. Kg3 {[%clk 0:01:20.1]} 42... Qh2# {[%clk
0:04:16.7]} 0-1

[Event "GrandPrix_30.05"]
[Site "Chess.com"]
[Date "2020.05.30"]
[Round "8"]
[White "ninullia"]
[Black "DaggiGretarsson"]
[Result "1-0"]
[WhiteElo "2312"]
[BlackElo "2169"]
[TimeControl "600+2"]
[EndTime "11:54:25 PDT"]
[Termination "ninullia won by resignation"]

1. d4 {[%clk 0:10:01.9]} 1... d5 {[%clk 0:09:47.2]} 2. Nf3 {[%clk 0:09:58.9]}
2... Nf6 {[%clk 0:09:45.3]} 3. c4 {[%clk 0:09:55]} 3... c6 {[%clk 0:09:44.5]} 4.
cxd5 {[%clk 0:09:46.9]} 4... cxd5 {[%clk 0:09:44.9]} 5. Nc3 {[%clk 0:09:48.1]}
5... Nc6 {[%clk 0:09:44.4]} 6. Bf4 {[%clk 0:09:47.3]} 6... a6 {[%clk 0:09:43.8]}
7. e3 {[%clk 0:09:40.7]} 7... Bg4 {[%clk 0:09:18.5]} 8. h3 {[%clk 0:09:38]} 8...
Bxf3 {[%clk 0:09:01.2]} 9. Qxf3 {[%clk 0:09:35.6]} 9... e6 {[%clk 0:09:02]} 10.
Bd3 {[%clk 0:09:32.7]} 10... Bd6 {[%clk 0:08:40.7]} 11. Bg5 {[%clk 0:09:33.3]}
11... h6 {[%clk 0:08:37.5]} 12. Bh4 {[%clk 0:09:32.9]} 12... Be7 {[%clk
0:05:42.8]} 13. O-O {[%clk 0:09:28.6]} 13... O-O {[%clk 0:05:42.3]} 14. Rac1
{[%clk 0:09:25.5]} 14... Rc8 {[%clk 0:05:06.1]} 15. Bb1 {[%clk 0:09:22.3]} 15...
b5 {[%clk 0:05:02.9]} 16. Qe2 {[%clk 0:09:13]} 16... Nd7 {[%clk 0:04:57.5]} 17.
Qd3 {[%clk 0:08:52.5]} 17... f5 {[%clk 0:04:23.1]} 18. Bg3 {[%clk 0:08:48.1]}
18... Nb6 {[%clk 0:04:14.7]} 19. Ne2 {[%clk 0:08:09.6]} 19... g5 {[%clk
0:04:03.6]} 20. Qd1 {[%clk 0:07:07.9]} 20... Nc4 {[%clk 0:03:50.8]} 21. b3
{[%clk 0:06:58]} 21... Na3 {[%clk 0:03:40.6]} 22. Bd3 {[%clk 0:06:13.4]} 22...
Nb4 {[%clk 0:03:40.4]} 23. Qd2 {[%clk 0:06:13]} 23... Nxd3 {[%clk 0:03:14.6]}
24. Qxd3 {[%clk 0:06:10]} 24... Qa5 {[%clk 0:03:15.4]} 25. Be5 {[%clk
0:05:36.2]} 25... b4 {[%clk 0:03:12.2]} 26. g4 {[%clk 0:05:36.6]} 26... Qb5
{[%clk 0:03:01.7]} 27. Qd2 {[%clk 0:05:31]} 27... Qd7 {[%clk 0:02:29.5]} 28. Ng3
{[%clk 0:05:22.2]} 28... Nb5 {[%clk 0:02:09.4]} 29. Rxc8 {[%clk 0:05:09.6]}
29... Rxc8 {[%clk 0:02:06.9]} 30. gxf5 {[%clk 0:05:11.2]} 30... exf5 {[%clk
0:02:06]} 31. Qd3 {[%clk 0:05:10.6]} 31... Rc3 {[%clk 0:01:55.5]} 32. Qb1 {[%clk
0:04:28.7]} 32... Na3 {[%clk 0:01:56]} 33. Qd1 {[%clk 0:04:29.7]} 33... f4
{[%clk 0:01:07.2]} 34. Qh5 {[%clk 0:04:10.2]} 34... Qe6 {[%clk 0:00:59.9]} 35.
Qe8+ {[%clk 0:04:06.8]} 35... Kh7 {[%clk 0:00:59.1]} 36. Qh8+ {[%clk 0:04:07.9]}
1-0